Cogmind - Beta 13 @@@ ROGUE MODE // 2024.04.13 @ 02:07:27 Player: Zaros426 Result: Destroyed by 8R-AWN with 8R-AWN's Boregun Performance ------------- Evolutions (0) 0 Regions Visited (3) 600 Robots Destroyed (9) 45 Value Destroyed (139) 139 Prototype IDs (23) 460 Alien Tech Used (0) 0 Bonus (300) 300 TOTAL SCORE: 1544 Bonus ------- Aligned with FarCom 300 Cogmind --------- Core Integrity 0/250 Matter 284/300 Energy 100/100 System Corruption 0% Temperature Cool (0) Movement Core (250) Ox4 Location -10/Exiles Parts ------- > --- POWER (1) -------- (None) > --- PROPULSION (2) --- (None) > --- UTILITY (2) ------ Medium Storage Unit > --- WEAPON (2) ------- Hammer Hammer > --- INVENTORY (10) --- Medium Matter Pod (0) Improved Terrain Scanner Transport Network Coupler 0b10 Alert Chip Assault Rifle Light Assault Rifle Peak State ------------ > --- POWER ------------ Ion Engine > --- PROPULSION ------- Compact Wheel Compact Wheel > --- UTILITY ---------- Medium Storage Unit Light Armor Plating > --- WEAPON ----------- Field Lobotomy Kit Hammer > --- INVENTORY -------- Nuclear Core Nuclear Core Light Fission Core Medium Matter Pod Improved Terrain Scanner Transport Network Coupler Assault Rifle Light Assault Rifle [Rating: 17] Favorites ----------- Power Ion Engine Engine Ion Engine Propulsion Compact Wheel Leg Aluminum Leg Wheel Compact Wheel Utility Medium Storage Unit Device Improved Terrain Scanner Storage Medium Storage Unit Processor Signal Interpreter Protection Light Armor Plating Weapon Hammer Ballistic Gun Assault Rifle Special Weapon Field Lobotomy Kit Impact Weapon Hammer Build | -11 -10 -10 -10 ------- Run | Yrd Mat Min Exi Slots Evolved . | . . . . Power . | . . . . Propulsion . | . . . . Utility . | . . . . Weapon . | . . . . Parts Attached 21 | 7 11 1 2 Power 2 | 1 1 . . Engine 2 | 1 1 . . Core . | . . . . Reactor . | . . . . Propulsion 7 | 2 5 . . Treads . | . . . . Leg 2 | . 2 . . Wheel 5 | 2 3 . . Hover . | . . . . Flight . | . . . . Utility 6 | 2 3 1 . Device 1 | 1 . . . Storage 2 | 1 1 . . Processor 1 | . 1 . . Hackware . | . . . . Protection 2 | . 1 1 . Artifact . | . . . . Weapon 6 | 2 2 . 2 Energy Gun . | . . . . Energy Cannon . | . . . . Ballistic Gun 2 | 2 . . . Ballistic Cannon . | . . . . Launcher . | . . . . Special Weapon 1 | . . . 1 Impact Weapon 3 | . 2 . 1 Slashing Weapon . | . . . . Piercing Weapon . | . . . . Special Melee Weapon . | . . . . Unidentified Prototypes . | . . . . Parts Lost 4 | . . . 4 Power 1 | . . . 1 Propulsion 2 | . . . 2 Utility 1 | . . . 1 Weapon . | . . . . Highest Loss Streak 4 | . . . 4 To Critical Strikes 1 | . . . 1 Average Slot Usage (%) 95 | . 94 100 95 Engine 13 | . 14 14 12 Leg 4 | . 11 . . Wheel 22 | . 16 28 26 Device 1 | . 4 . . Storage 14 | . 14 14 14 Protection 11 | . 9 9 12 Ballistic Gun 8 | . 19 . . Impact Weapon 17 | . 3 28 27 Naked Turns . | . . . . Heaviest Build 22 | 14 22 22 22 Greatest Support 32 | 20 32 32 32 Greatest Overweight (x) 1 | . 1 . . Average Overweight (x) . | . . . . Largest Inventory Capacity 10 | 8 10 10 10 Average Capacity 9 | 7 9 10 10 Most Carried 10 | . 10 10 10 Average Carried 5 | . 4 9 7 Final Capacity 10 | 8 10 10 10 Final Carried 10 | . 10 9 6 Class Distribution -------------------- 100% | Mutant Dominant Class ---------------- Mutant | -10/Materials Mutant | -10/Mines Mutant | -10/Exiles Resources | -11 -10 -10 -10 ----------- Run | Yrd Mat Min Exi Matter Collected 557 | 265 281 . 11 Remotely . | . . . . Salvage Created 299 | 29 270 . . Parts 20 | 5 15 . . Haulers Intercepted 1 | . 1 . . Recyclers Shooed 1 | 1 . . . Parts Field Recycled . | . . . . Retrieved Matter . | . . . . Parts Self-Destructed . | . . . . Prevented . | . . . . Kills | -11 -10 -10 -10 ------- Run | Yrd Mat Min Exi Combat Hostiles Destroyed 4 | . 4 . . Guns 4 | . 4 . . Classes Destroyed 6 | 1 5 . . Tunneler 2 | 2 . . . Hauler 1 | . 1 . . Recycler 1 | . 1 . . Operator 1 | . 1 . . Swarmer 2 | . 2 . . Grunt 2 | . 2 . . Best Kill Streak 2 | 2 2 . . Combat Bots Only 2 | . 2 . . Max Kills in Single Turn 1 | 1 1 . . Gunslinging . | . . . . Exploded . | . . . . Melee . | . . . . Uniques/NPCs Destroyed . | . . . . Combat | -11 -10 -10 -10 -------- Run | Yrd Mat Min Exi Hostile Shots Fired 68 | . 28 . 40 Missed 17 | . 9 . 8 Damage Taken 900 | . 237 . 663 Core 259 | . 53 . 206 Absorbed by Shields . | . . . . Core Remaining (%) 100 | 100 . . . Volleys Fired 54 | 16 38 . . Largest 2 | 2 2 . . Hottest 40 | 40 40 . . Shots Fired 75 | 32 43 . . Gun 75 | 32 43 . . Cannon . | . . . . Launcher . | . . . . Special . | . . . . Kinetic 75 | 32 43 . . Thermal . | . . . . Explosive . | . . . . Electromagnetic . | . . . . Robot Hit Streak 11 | 2 11 . . Robot Miss Streak 5 | 5 3 . . Penetration Max . | . . . . Secondary Targets . | . . . . Shots Hit Robots 60 | 15 32 . 13 Core Hits 16 | 4 12 . . Critical Kills 1 | . 1 . . Critical Parts Destroyed 3 | . 1 . 2 Critical Strikes 7 | . 2 . 5 Destroy 2 | . 2 . . Smash 5 | . . . 5 Melee Attacks 21 | . . . 21 Impact 21 | . . . 21 Slashing . | . . . . Piercing . | . . . . Sneak Attacks . | . . . . Combat Hostiles . | . . . . Follow-up Attacks 4 | . . . 4 Damage Inflicted 858 | 134 390 . 334 Guns 524 | 134 390 . . Cannons . | . . . . Explosions 11 | . . . 11 Melee 323 | . . . 323 Ramming . | . . . . Kinetic 524 | 134 390 . . Thermal 11 | . . . 11 Explosive . | . . . . Electromagnetic . | . . . . Impact 323 | . . . 323 Slashing . | . . . . Piercing . | . . . . Highest Corruption . | . . . . Average Corruption . | . . . . Corruption Purged . | . . . . Corruption Blocked . | . . . . Overload Shots . | . . . . Overflow Damage 64 | . . . 64 Projectiles . | . . . . Explosions 34 | . . . 34 Melee 30 | . . . 30 Knockbacks 3 | . . . 3 Impact 3 | . . . 3 Kinetic . | . . . . Secondary . | . . . . Self-Inflicted Damage 113 | . . . 113 Shots 1 | . . . 1 Rammed . | . . . . Targets Rammed . | . . . . Kicked . | . . . . Crushed . | . . . . Highest Temperature 15 | . 15 . . Average Temperature 3 | . 3 . . Received Heat Transfer 111 | . 111 . . Siege Activations . | . . . . Robots Corrupted . | . . . . Combat Hostiles . | . . . . Parts Fried . | . . . . Impact Corruptions 4 | . . . 4 Robots Melted . | . . . . Combat Hostiles . | . . . . Parts Melted . | . . . . Heat Transferred 20 | . . . 20 Parts Sabotaged . | . . . . Parts Stolen . | . . . . Parts Stripped . | . . . . Power Chain Reactions . | . . . . Alert | -11 -10 -10 -10 ------- Run | Yrd Mat Min Exi Peak Influence 200 | 10 200 78 . Initial 78 | . 6 78 . Average 65 | 1 82 78 . Maximum Alert Level 1 | . 1 . . Low Security (%) 99 | 100 99 100 . Level 1 . | . . . . Level 2 . | . . . . Level 3 . | . . . . Level 4 . | . . . . Level 5 . | . . . . High Security . | . . . . Max Security . | . . . . Squads Dispatched . | . . . . Investigation . | . . . . Extermination . | . . . . Reinforcement . | . . . . Assault . | . . . . Garrison . | . . . . Intercept . | . . . . Searches Triggered . | . . . . Construction Impeded . | . . . . Haulers Reinforced . | . . . . Active Scanning Responses . | . . . . Cargo Convoy Interrupts . | . . . . Stealth | -11 -10 -10 -10 --------- Run | Yrd Mat Min Exi Distress Signals 1 | . 1 . . Communications Jammed . | . . . . Distress Signals . | . . . . Times Spotted 19 | . 11 . 8 Peak Tracking Total 9 | . 3 . 9 Tactical Retreats 1 | . 1 . . Traps | -11 -10 -10 -10 ------- Run | Yrd Mat Min Exi Traps Triggered . | . . . . Indirectly . | . . . . Trap Hack Attempts . | . . . . Triggered . | . . . . Disarmed . | . . . . Reprogrammed . | . . . . Reused . | . . . . Traps Extracted . | . . . . Installed . | . . . . Triggered . | . . . . Machines | -11 -10 -10 -10 ---------- Run | Yrd Mat Min Exi Machines Disabled 2 | . . . 2 Max in Single Turn 1 | . . . 1 Machines Repaired . | . . . . Machines Dismantled . | . . . . Machines Sabotaged . | . . . . Overloaded Fab Kills . | . . . . Hacking | -11 -10 -10 -10 --------- Run | Yrd Mat Min Exi Machines Accessed 4 | . 1 . 3 Terminals 1 | . 1 . . Fabricators . | . . . . Repair Stations . | . . . . Recycling Units . | . . . . Scanalyzers . | . . . . Garrison Access . | . . . . Total Hacks 11 | . 6 . 5 Successful 10 | . 5 . 5 Failed 1 | . 1 . . Catastrophic . | . . . . Database Lockouts . | . . . . Manual 1 | . . . 1 Terminals 6 | . 6 . . Fabricators . | . . . . Repair Stations . | . . . . Recycling Units . | . . . . Scanalyzers . | . . . . Garrison Access . | . . . . Terminal Hacks 10 | . 5 . 5 Record 4 | . . . 4 Branch Access Points 1 | . 1 . . Alert Level 1 | . 1 . . Dispatch Records 1 | . 1 . . Hauler Manifests 1 | . 1 . . Zone Layout 1 | . 1 . . Derelict Proto ID Bank 1 | . . . 1 Fabricator Hacks . | . . . . Repair Station Hacks . | . . . . Recycling Unit Hacks . | . . . . Scanalyzer . | . . . . Garrison Access Hacks . | . . . . Unauthorized Hacks . | . . . . Terminals . | . . . . Fabricators . | . . . . Repair Stations . | . . . . Recycling Units . | . . . . Scanalyzers . | . . . . Garrison Access . | . . . . Data Cores Recovered 1 | . 1 . . Used . | . . . . Hacking Detections 1 | . 1 . . Full Trace Events . | . . . . Feedback Events . | . . . . Feedback Blocked . | . . . . Robot Schematics Acquired . | . . . . Robots Built . | . . . . Authchips . | . . . . Time . | . . . . Total Robot Build Rating . | . . . . Part Schematics Acquired . | . . . . Parts Built . | . . . . Authchips . | . . . . Time . | . . . . Total Part Build Rating . | . . . . Parts Repaired . | . . . . Time . | . . . . Parts Recycled . | . . . . Recycled Matter . | . . . . Retrieved Matter . | . . . . Retrieved Components . | . . . . Parts Scanalyzed . | . . . . Part Schematics Acquired . | . . . . Parts Damaged . | . . . . Bothacking | -11 -10 -10 -10 ------------ Run | Yrd Mat Min Exi Used RIF Installer . | . . . . Robots Hacked . | . . . . Non-combat . | . . . . Combat . | . . . . Robot Hacks Applied . | . . . . Relay Couplers Released . | . . . . Fabnet Peak Effective % . | . . . . Robots Rewired . | . . . . Allies Hacked . | . . . . Hacks Repelled . | . . . . Allies | -11 -10 -10 -10 -------- Run | Yrd Mat Min Exi Total Allies . | . . . . Largest Group . | . . . . Highest-Rated Group . | . . . . Highest-Rated Ally . | . . . . Total Orders . | . . . . Ally Attacks . | . . . . Total Damage . | . . . . Kills . | . . . . Allies Corrupted . | . . . . Allies Melted . | . . . . Intel | -11 -10 -10 -10 ------- Run | Yrd Mat Min Exi Robot Analysis Total . | . . . . Derelict Logs Recovered . | . . . . Drone Launches . | . . . . Drone Recoveries . | . . . . Exploration | -11 -10 -10 -10 ------------- Run | Yrd Mat Min Exi Turns Passed 826 | 94 310 55 367 Spaces Moved 558 | 47 180 49 282 Core 1 | 1 . . . Treads . | . . . . Legs 60 | . 60 . . Wheels 497 | 46 120 49 282 Hover . | . . . . Flight . | . . . . Fastest Speed 50 | 50 80 100 100 Average Speed 97 | 79 96 100 100 Slowest Speed 190 | 80 190 100 100 Overloaded Moves . | . . . . Propulsion Burnouts . | . . . . Robots Hopped . | . . . . Cave-ins Triggered . | . . . . Exploration Rate (%) 21 | 4 25 14 41 Regions Visited 3 Branch Regions 2 Pre-discovered Areas . | . . . . Known Exits Taken 1 | . 1 . . Unknown Exits Taken 2 | 1 . 1 . Scrap Searched . | . . . . Spaces Dug . | . . . . Terrain Destroyed 50 | . . . 50 Melee . | . . . . Projectile . | . . . . AOE 50 | . . . 50 Terrain Rammed . | . . . . Walls Destroyed . | . . . . Machines Disabled . | . . . . Actions | -11 -10 -10 -10 --------- Run | Yrd Mat Min Exi Total 737 | 71 271 55 340 Wait 52 | 2 25 . 25 Move 555 | 46 179 48 282 Hop . | . . . . Pick Up 20 | . 12 3 5 Fast Attach 9 | 7 1 . 1 Attach 1 | . . . 1 Detach 1 | . 1 . . Swap 11 | . 10 1 . Drop 17 | . 5 3 9 Fire 54 | 16 38 . . Melee 17 | . . . 17 Ram . | . . . . Kick . | . . . . Crush . | . . . . Escape Stasis . | . . . . Rewire . | . . . . Trap . | . . . . Miscellaneous . | . . . . Route ------- -11/Scrapyard -10/Materials (discovered 2 exits: *Min x2) -10/Mines -10/Exiles History --------- Turn | Location | Event 13 | -11/Scrapyard | Discovered new exit (range 15) 95 | -11/Scrapyard | Entered Materials 191 | -10/Materials | Identified exit to Mines 314 | -10/Materials | Build established: Mutant 405 | -10/Materials | Entered Mines 455 | -10/Mines | Deemed a non-threat by the Exiles lab entrance 456 | -10/Mines | Discovered new exit (range 5) 460 | -10/Mines | Entered Exiles 493 | -10/Exiles | Met 8R-AWN 510 | -10/Exiles | Met EX-HEX 538 | -10/Exiles | Met EX-BIN 559 | -10/Exiles | Aligned with FarCom system 560 | -10/Exiles | Given EX-Vault access code 583 | -10/Exiles | Opened EX-Vault 621 | -10/Exiles | Warned to stay clear of 0b10 Research branches 659 | -10/Exiles | Found Field Lobotomy Kit 665 | -10/Exiles | Found 0b10 Alert Chip 715 | -10/Exiles | Attacked by the Exiles 791 | -10/Exiles | Core integrity fell below 50% 807 | -10/Exiles | Core integrity fell below 20% 827 | -10/Exiles | Destroyed by 8R-AWN with 8R-AWN's Boregun Last Messages --------------- 00806_ Penetrated by HV Slug. 00806_ HV Slug penetrates Earth. 00807_ 8R-AWN suffers critical hit (Smash). 00807_ Destroyed Prototype Processor. 00807_ Destroyed Prototype Protection. 00807_ 8R-AWN system corrupted by crushing effect. 00808_ HV Slug penetrates Earth. 00808_ Penetrated by HV Slug. 00810_ Hammer follow-up attack on 8R-AWN. 00810_ 8R-AWN knocked back. 00810_ HV Slug penetrates Earth. 00813_ 8R-AWN suffers critical hit (Smash). 00813_ Destroyed Prototype Ballistic Gun. 00813_ 8R-AWN system corrupted by crushing effect. 00813_ Hammer follow-up attack on 8R-AWN. 00814_ Penetrated by HV Slug. 00816_ Hammer follow-up attack on 8R-AWN. 00817_ Penetrated by HV Slug. 00826_ HV Slug penetrates Wall. 00827_ Penetrated by HV Slug. Map ----- +----------------------------------------------------+ | | | | | | | ???????????????????????????????#########?????????? | | ???????????????????????????????# ! #?????????? | | ???????????????????????????????# #?????????? | | ???????????????????????????????# | #?????????? | | ???????????????????????????????# X#?????????? | | ???????????????????????????????## ##?????????? | | ???????????????????????????????#X #??????????? | | ???????????????????????????????## #??????????? | | ????????????????????????????????# #??????????? | | ????????????????????????????????# #########??? | | ????????????????????????????????# ##""""""#??? | | ????????????????????????????????# ## """#??? | | ????????????????????????????????# X""#??? | | ????????????????????????????????# ## """#??? | | ????????????????????????######### ##""""""#??? | | ????????????????????????#""""""#; #########??? | | ????????????????????????#"""" ;; #??????????? | | ????????????????????????#""X" #??????????? | | ????????????????????##### % #??????????? | | ????????????????????# ; % #??????????? | | ????????????????????## ; ; % #?#########? | | ?????????????????#### ;;;; ;; ;# #?#"""""""#? | | ?????????? ; @g; ### #?#"""""""#? | | ?????????????????#### ; ; #?# #?#"""""""#? | | ????????????????????# ; ; ### ###"" """"#? | | ????????????????????# ; ; ##" """"#? | | ????????????????????# ;;;;;; ##" """#? | | ????????????????????# # ##" """#? | | ???????????????????? ###########" """#? | | ???????????????????##??????????#" """#? | | ???????????????????????????????#" """## | | ???????????????????????????????## """"" | | ????????????????????????????????# """## | | ????????????????????????????????#" "X" """"" | | ????????????????????????????????#" """ # | | ????????????????????????????????#" """""""""#? | | ???????????????????????????????##" ###########? | | ??????????????????????????????##"" #??????????? | | ????????????????????????????###"" #??????????? | | ????????????????????????????""""" ##?????????? | | ??????????????????????????"" " "" ##???###### | | ??????????????????????????"" " #####""""" | | ????????????????????????? " " """ | | ??????????????????????? "" | | ??????????????????????? " | | ??????????????????????? | | ??????????????????????? | +----------------------------------------------------+ Best States ------------- Heat Dissipation 25 Energy Generation 10 Energy Capacity 250 Matter Stores 293 Matter Capacity 300 Sight Range 16 Terrain Scan Range 16 Terrain Scan Density 10 Armor Coverage 150 Evasion (%) 55 Item Schematics ----------------- None Robot Schematics ------------------ None Fabricated ------------ Nothing Alien Tech Used ----------------- None Achievements -------------- None Challenges ------------ None Game ------ Seed HellfireSurveybotChronowheel Manual? 0 Play Time 00:11:38 Cumulative 38.3 hours Start 2024.04.13 @ 01:56:44 End 2024.04.13 @ 02:07:27 Sessions 1 Manual Loads 0 Difficulty Rogue Special Mode None Game No. 40 Rogue 40 Adventurer 0 Explorer 0 Win Type - Total 0 Types 0/0/0/0/0/0/0/0/0 Lore% 25 Gallery% 36 Achievement% 27 Wizard Run 0 Options --------- Layout 0 ASCII 0 Keyboard 0 Movement Mouse Keybinds 0 Fullscreen 1 Font 24/Smallcaps Map View 183x50 Zoom Use 0% Tactical HUD 1 Map Filters NONE Filters NONE Steam 0 RUN: 81074407-5b4d-4cca-88bd-8944d5a02136